Cogmind - Beta 11.1 *** ADVENTURER MODE // 2022.08.13 @ 15:32:48 Player: Ms Vella Result: Destroyed by 8R-AWN with 8R-AWN's Boregun Performance ------------- Evolutions (0) 0 Regions Visited (3) 600 Robots Destroyed (11) 55 Value Destroyed (362) 362 Prototype IDs (6) 120 Alien Tech Used (0) 0 Bonus (-153) -153 TOTAL SCORE: 984 Bonus ------- Friendly Fire -153 Cogmind --------- Core Integrity 0/250 Matter 108/300 Energy 93/100 System Corruption 3% Temperature Cool (15) Movement Walking (330) Ox3 Location -10/Exiles Parts ------- > --- POWER (1) -------- (None) > --- PROPULSION (2) --- Aluminum Leg > --- UTILITY (2) ------ Large Storage Unit > --- WEAPON (2) ------- Light Cannon Bore Cannon > --- INVENTORY (15) --- Light Ion Engine Light Nuclear Core Aluminum Leg Aluminum Leg Aluminum Leg Aluminum Leg Large Storage Unit Visual Processing Unit Peak State ------------ > --- POWER ------------ Light Nuclear Core > --- PROPULSION ------- Aluminum Leg Aluminum Leg > --- UTILITY ---------- Large Storage Unit > --- WEAPON ----------- Bore Cannon Rocket Launcher > --- INVENTORY -------- Light Ion Engine Light Nuclear Core Aluminum Leg Aluminum Leg Aluminum Leg Aluminum Leg Large Storage Unit Visual Processing Unit Light Cannon Light Cannon Light Cannon [Rating: 14] Favorites ----------- Power Light Nuclear Core Engine Light Ion Engine Power Core Light Nuclear Core Propulsion Aluminum Leg Leg Aluminum Leg Utility Large Storage Unit Storage Large Storage Unit Weapon Light Cannon Energy Gun Medium Laser Ballistic Gun Assault Rifle Ballistic Cannon Light Cannon Launcher Rocket Launcher Build | -11 -10 -10 -10 ------- Run | Scr Mat Min Exi Slots Evolved . | . . . . Power . | . . . . Propulsion . | . . . . Utility . | . . . . Weapon . | . . . . Parts Attached 26 | . 19 . 7 Power 2 | . 2 . . Engine . | . . . . Core 2 | . 2 . . Reactor . | . . . . Propulsion 7 | . 7 . . Treads . | . . . . Leg 7 | . 7 . . Wheel . | . . . . Hover . | . . . . Flight . | . . . . Utility 2 | . 2 . . Device . | . . . . Storage 2 | . 2 . . Processor . | . . . . Hackware . | . . . . Protection . | . . . . Artifact . | . . . . Weapon 15 | . 8 . 7 Energy Gun 3 | . 3 . . Energy Cannon . | . . . . Ballistic Gun 3 | . 3 . . Ballistic Cannon 8 | . 2 . 6 Launcher 1 | . . . 1 Special Weapon . | . . . . Impact Weapon . | . . . . Slashing Weapon . | . . . . Piercing Weapon . | . . . . Special Melee Weapon . | . . . . Unidentified Prototypes . | . . . . Corrupted Parts 1 | . . . 1 System Corruption 3 | . . . 3 Parts Lost 5 | . . . 5 Power 1 | . . . 1 Propulsion 1 | . . . 1 Utility . | . . . . Weapon 3 | . . . 3 Highest Loss Streak 5 | . . . 5 To Critical Strikes 3 | . . . 3 Average Slot Usage (%) 83 | . 83 85 76 Core 13 | . 12 14 11 Leg 27 | . 27 28 24 Storage 14 | . 14 14 14 Energy Gun 3 | . 7 . . Ballistic Gun 3 | . 7 . . Ballistic Cannon 20 | . 12 28 24 Naked Turns . | . . . . Heaviest Build 37 | 12 31 31 37 Greatest Support 20 | 20 20 20 20 Greatest Overweight (x) 5 | . 5 1 1 Average Overweight (x) . | . . 1 1 Largest Inventory Capacity 15 | 8 15 15 15 Average Capacity 13 | 8 12 15 15 Most Carried 11 | 5 9 11 11 Average Carried 7 | 4 5 10 10 Final Capacity 15 | 8 15 15 15 Final Carried 11 | 2 9 11 8 Class Distribution -------------------- 96% | Mutant 3% | Scavenger-Mutant Dominant Class ---------------- Mutant | -10/Materials Mutant | -10/Mines Scavenger-Mutant | -10/Exiles Resources | -11 -10 -10 -10 ----------- Run | Scr Mat Min Exi Matter Collected 649 | 200 200 249 . Remotely . | . . . . Salvage Created 427 | . 348 14 65 Parts 18 | . 16 1 1 Haulers Intercepted . | . . . . Recyclers Shooed . | . . . . Parts Field Recycled . | . . . . Retrieved Matter . | . . . . Parts Self-Destructed . | . . . . Prevented . | . . . . Kills | -11 -10 -10 -10 ------- Run | Scr Mat Min Exi Combat Hostiles Destroyed 17 | . 6 5 6 Guns 4 | . 4 . . Cannons 8 | . 2 5 1 AOE 5 | . . . 5 Classes Destroyed 5 | . 2 3 . Watcher 1 | . 1 . . Swarmer 2 | . . 2 . Grunt 7 | . 6 . 1 Demolisher 1 | . . 1 . Assembled 8 | . . 2 6 Best Kill Streak 6 | . 4 2 6 Combat Bots Only 6 | . 4 2 6 Max Kills in Single Turn 3 | . 1 1 3 Gunslinging . | . . . . Exploded 3 | . . . 3 Melee . | . . . . Uniques/NPCs Destroyed . | . . . . Combat | -11 -10 -10 -10 -------- Run | Scr Mat Min Exi Damage Taken 1049 | . 130 220 699 Core 265 | . 14 51 200 Absorbed by Shields . | . . . . Regen/Repaired (Parts) 50 | . 50 . . Core Remaining (%) 100 | 100 . . . Volleys Fired 68 | . 39 12 17 Largest 2 | . 2 2 2 Hottest 92 | . 70 70 92 Shots Fired 110 | . 58 24 28 Gun 24 | . 24 . . Cannon 84 | . 34 24 26 Launcher 2 | . . . 2 Special . | . . . . Kinetic 96 | . 46 24 26 Thermal 12 | . 12 . . Explosive 2 | . . . 2 Electromagnetic . | . . . . Robot Hit Streak 18 | . 18 7 4 Robot Miss Streak 5 | . 1 2 5 Penetration Max . | . . . . Secondary Targets 1 | . 1 . . Max Gunslinging Chain 1 | . 1 . . Shots Hit Robots 57 | . 29 14 14 Core Hits 34 | . 13 6 15 Critical Kills . | . . . . Critical Parts Destroyed 2 | . 1 . 1 Critical Strikes 3 | . 1 . 2 Destroy 3 | . 1 . 2 Melee Attacks . | . . . . Impact . | . . . . Slashing . | . . . . Piercing . | . . . . Sneak Attacks . | . . . . Combat Hostiles . | . . . . Follow-up Attacks . | . . . . Damage Inflicted 1270 | . 387 256 627 Guns 298 | . 298 . . Cannons 553 | . 89 247 217 Explosions 410 | . . . 410 Melee . | . . . . Ramming 9 | . . 9 . Kinetic 715 | . 251 247 217 Thermal 136 | . 136 . . Explosive 410 | . . . 410 Electromagnetic . | . . . . Impact . | . . . . Slashing . | . . . . Piercing . | . . . . Highest Corruption 3 | . . . 3 Average Corruption 3 | . . . 3 Corruption Purged . | . . . . Corruption Blocked . | . . . . Effects 4 | . . . 4 Message Errors 1 | . . . 1 Parts Rejected 1 | . . . 1 Data Loss (minor) 1 | . . . 1 Misfires 1 | . . . 1 Overload Shots . | . . . . Overflow Damage 28 | . . 12 16 Projectiles 12 | . . 12 . Explosions 16 | . . . 16 Melee . | . . . . Knockbacks 14 | . 1 7 6 Impact . | . . . . Kinetic 14 | . 1 7 6 Secondary . | . . . . Self-Inflicted Damage 63 | . . . 63 Shots 2 | . . . 2 Rammed . | . . . . Targets Rammed 2 | . . 2 . Kicked 2 | . . 2 . Crushed . | . . . . Highest Temperature 171 | . 171 60 158 Average Temperature 50 | . 49 21 75 Received Heat Transfer 132 | . 132 . . Siege Activations . | . . . . Robots Corrupted . | . . . . Combat Hostiles . | . . . . Parts Fried . | . . . . Impact Corruptions . | . . . . Robots Melted . | . . . . Combat Hostiles . | . . . . Parts Melted . | . . . . Heat Transferred 407 | . 407 . . Parts Sabotaged . | . . . . Parts Stolen . | . . . . Parts Stripped . | . . . . Power Chain Reactions . | . . . . Missiles Intercepted . | . . . . Alert | -11 -10 -10 -10 ------- Run | Scr Mat Min Exi Peak Influence 114 | . 114 113 . Initial 18 | . . 18 . Average 36 | . 36 36 . Maximum Alert Level . | . . . . Low Security (%) 100 | 100 100 100 . Level 1 . | . . . . Level 2 . | . . . . Level 3 . | . . . . Level 4 . | . . . . Level 5 . | . . . . High Security . | . . . . Max Security . | . . . . Squads Dispatched . | . . . . Investigation . | . . . . Extermination . | . . . . Reinforcement . | . . . . Assault . | . . . . Garrison . | . . . . Intercept . | . . . . Searches Triggered . | . . . . Construction Impeded . | . . . . Haulers Reinforced . | . . . . Active Scanning Responses . | . . . . Cargo Convoy Interrupts . | . . . . Stealth | -11 -10 -10 -10 --------- Run | Scr Mat Min Exi Distress Signals 1 | . 1 . . Communications Jammed . | . . . . Distress Signals . | . . . . Times Spotted 27 | . 11 8 8 Peak Tracking Total 9 | . 3 3 9 Tactical Retreats 2 | . . 2 . Traps | -11 -10 -10 -10 ------- Run | Scr Mat Min Exi Traps Triggered 7 | . 7 . . Indirectly . | . . . . Trap Hack Attempts . | . . . . Triggered . | . . . . Disarmed . | . . . . Reprogrammed . | . . . . Reused . | . . . . Traps Extracted . | . . . . Installed . | . . . . Triggered . | . . . . Machines | -11 -10 -10 -10 ---------- Run | Scr Mat Min Exi Machines Disabled 5 | . 1 2 2 Max in Single Turn 1 | . 1 1 1 Machines Sabotaged . | . . . . Garrisons Compromised . | . . . . Overloaded Fab Kills . | . . . . Hacking | -11 -10 -10 -10 --------- Run | Scr Mat Min Exi Machines Accessed 6 | . 5 1 . Terminals 5 | . 4 1 . Fabricators . | . . . . Repair Stations 1 | . 1 . . Recycling Units . | . . . . Scanalyzers . | . . . . Garrison Access . | . . . . Total Hacks 19 | . 16 3 . Successful 15 | . 12 3 . Failed 4 | . 4 . . Catastrophic . | . . . . Database Lockouts . | . . . . Manual 6 | . 6 . . Terminals 14 | . 11 3 . Fabricators . | . . . . Repair Stations 5 | . 5 . . Recycling Units . | . . . . Scanalyzers . | . . . . Garrison Access . | . . . . Terminal Hacks 9 | . 6 3 . Record 3 | . . 3 . Prototype ID Bank 4 | . 4 . . Branch Access Points 1 | . 1 . . Emergency Access Points 1 | . 1 . . Fabricator Hacks . | . . . . Repair Station Hacks 4 | . 4 . . Scan Component 3 | . 3 . . Repair 1 | . 1 . . Recycling Unit Hacks . | . . . . Scanalyzer . | . . . . Garrison Access Hacks . | . . . . Unauthorized Hacks 2 | . 2 . . Terminals 2 | . 2 . . Botnet 2 | . 2 . . Fabricators . | . . . . Repair Stations . | . . . . Recycling Units . | . . . . Scanalyzers . | . . . . Garrison Access . | . . . . Data Cores Recovered . | . . . . Used . | . . . . Hacking Detections 6 | . 5 1 . Full Trace Events . | . . . . Feedback Events . | . . . . Feedback Blocked . | . . . . Robot Schematics Acquired . | . . . . Robots Built . | . . . . Authchips . | . . . . Time . | . . . . Total Robot Build Rating . | . . . . Part Schematics Acquired . | . . . . Parts Built . | . . . . Authchips . | . . . . Time . | . . . . Total Part Build Rating . | . . . . Parts Repaired 1 | . 1 . . Time 26 | . 26 . . Parts Recycled . | . . . . Recycled Matter . | . . . . Retrieved Matter . | . . . . Retrieved Components . | . . . . Parts Scanalyzed . | . . . . Part Schematics Acquired . | . . . . Parts Damaged . | . . . . Bothacking | -11 -10 -10 -10 ------------ Run | Scr Mat Min Exi Used RIF Installer . | . . . . Robots Hacked . | . . . . Non-combat . | . . . . Combat . | . . . . Robot Hacks Applied . | . . . . Relay Couplers Released . | . . . . Fabnet Peak Effective % . | . . . . Robots Rewired . | . . . . Allies Hacked . | . . . . Hacks Repelled . | . . . . Allies | -11 -10 -10 -10 -------- Run | Scr Mat Min Exi Total Allies 3 | . . 3 . Largest Group 3 | . . 3 3 Highest-Rated Group 40 | . . 40 40 Highest-Rated Ally 16 | . . 16 16 Total Orders . | . . . . Ally Attacks 12 | . . . 12 Total Damage 23 | . . . 23 Kills . | . . . . Allies Corrupted . | . . . . Allies Melted . | . . . . Intel | -11 -10 -10 -10 ------- Run | Scr Mat Min Exi Robot Analysis Total . | . . . . Derelict Logs Recovered 1 | . . 1 . Drone Launches . | . . . . Drone Recoveries . | . . . . Exploration | -11 -10 -10 -10 ------------- Run | Scr Mat Min Exi Turns Passed 2467 | 2 1152 1201 112 Spaces Moved 1296 | 1 671 593 31 Core 4 | . 4 . . Treads . | . . . . Legs 1292 | 1 667 593 31 Wheels . | . . . . Hover . | . . . . Flight . | . . . . Fastest Speed 120 | 120 120 190 190 Average Speed 167 | 120 146 190 190 Slowest Speed 300 | 120 300 190 190 Overloaded Moves . | . . . . Propulsion Burnouts . | . . . . Robots Hopped . | . . . . Cave-ins Triggered . | . . . . Exploration Rate (%) 46 | 2 75 99 10 Regions Visited 3 Branch Regions 2 Pre-discovered Areas 1 | . . 1 . Known Exits Taken 1 | . 1 . . Unknown Exits Taken 2 | 1 . 1 . Scrap Searched 1 | . . 1 . Spaces Dug . | . . . . Terrain Destroyed 14 | . . . 14 Melee . | . . . . Projectile 5 | . . . 5 AOE 9 | . . . 9 Terrain Rammed . | . . . . Walls Destroyed . | . . . . Machines Disabled . | . . . . Actions | -11 -10 -10 -10 --------- Run | Scr Mat Min Exi Total 1479 | 4 778 642 55 Wait 69 | . 35 34 . Move 1293 | . 670 592 31 Hop . | . . . . Pick Up 10 | . 8 2 . Fast Attach 17 | . 16 . 1 Attach 4 | . 1 . 3 Detach . | . . . . Swap 5 | . 2 . 3 Drop 11 | 4 7 . . Fire 68 | . 39 12 17 Melee . | . . . . Ram . | . . . . Kick 2 | . . 2 . Crush . | . . . . Escape Stasis . | . . . . Rewire . | . . . . Trap . | . . . . Miscellaneous . | . . . . Route ------- -11/Scrapyard -10/Materials (discovered 4 exits: [*Mat x3] / *Min) -10/Mines (discovered 3 exits: [*Mat x2] / [*Exi]) -10/Exiles History --------- Turn | Location | Event 3 | -11/Scrapyard | Discovered new exit (range 0) 3 | -11/Scrapyard | Entered Materials 175 | -10/Materials | Identified exit to Mines 259 | -10/Materials | Discovered new exit (range 12) 301 | -10/Materials | Build established: Mutant 343 | -10/Materials | Discovered new exit (range 13) 425 | -10/Materials | Repaired Assault Rifle 1057 | -10/Materials | Discovered new exit (range 16) 1155 | -10/Materials | Entered Mines 1156 | -10/Mines | Assembled infested the area 1161 | -10/Mines | Assisted by a Guerilla fighting off Assembled 1354 | -10/Mines | Learned location of Storage (-8) 1494 | -10/Mines | Discovered new exit (range 8) 1513 | -10/Mines | Assisted by bots powering up and referring to "LRC-V3" 1549 | -10/Mines | Discovered new exit (range 9) 1676 | -10/Mines | Received a Rocket Launcher from a helpful Derelict 1806 | -10/Mines | Found a hidden stash of uninstalled traps 1945 | -10/Mines | Learned Materials trap positions 2340 | -10/Mines | Deemed a non-threat by the Exiles lab entrance 2340 | -10/Mines | Discovered new exit (range 5) 2356 | -10/Mines | Entered Exiles 2356 | -10/Exiles | Accompanied by 3 allies 2404 | -10/Exiles | Met 8R-AWN 2418 | -10/Exiles | Attacked by the Exiles 2438 | -10/Exiles | Core integrity fell below 50% 2454 | -10/Exiles | Core integrity fell below 20% 2468 | -10/Exiles | Destroyed by 8R-AWN with 8R-AWN's Boregun Last Messages --------------- 02457_ Lgt. Cannon destroyed. 02457_ HV Slug penetrates Earth. 02457_ Penetrated by HV Slug. 02457_ HV Slug penetrates Earth. 02458_ The unstable cave ceiling collapses. 02460_ HV Slug penetrates Wall. 02460_ HV Slug penetrates Earth. 02460_ Penetrated by HV Slug. 02460_ HV Slug penetrates Earth. 02462_ Penetrated by HV Slug. 02462_ HV Slug penetrates Wall. 02462_ 8R-AWN knocked back. 02464_ Penetrated by HV Slug. 02464_ HV Slug penetrates Earth. 02464_ Penetrated by HV Slug. 02464_ HV Slug penetrates Earth. 02465_ JV6D,ZFQC Y6MC0>NFXXJD0 02468_ Penetrated by HV Slug. 02468_ HV Slug penetrates Earth. 02468_ Penetrated by HV Slug. Map ----- +----------------------------------------------------+ | ?????????????????????????????????????????????????? | | ?????????????????????????????????????????????????? | | ?????????????????????????????????????????????????? | | ?????????????????????????????????????????????????? | | ?????????????????????????????????????????????????? | | ?????????????????????????????????????????????????? | | ?????????????????????????????????????????????????? | | ?????????????????????????????????????????????????? | | ?????????????????????????????????????????????????? | | ?????????????????????????????????????????????????? | | ?????????????????????????????????????????????????? | | ?????????????????????????????????????????????????? | | ?????????????????????????????????????????????????? | | ?????????????????????????????????????????????????? | | ???????????????????????????????????????????? ????? | | ???????????????????????????????????????????# #?? | | ??????????????????????##??????????????????# ##? | | ?????????????????????? ?????????????????# #? | | ?????????????????????##%#????????????????# #? | | ????????????????????## g ???????????????## ?? | | ???????????????????## ##????????????## #??? | | ??????????????????## ##???????????# #??? | | ????????????????#;# ##????????### #???? | | ?????????????????# %########## #???? | | ????????????????## % !! # ;# #????? | | ???????????????#;a % @%% * ##???? | | ?????????? # [ %= #???? | | ?????????? # ##??? | | ??????????? "??##" # ;; ###? | | ??????????? #"????####;;##?#;### * ## | | ???????????? ????????????# #????#?##### | | ??????????????????????????? ??????????### | | ??????????????????????????? ????????????### | | ???????????????????????????# #?????????????### | | ???????????????????????????? ??????????????#" | | ????????????????????????????# ??????????????#### | | ????????????????????????????? ????????????????# | | ????????????????????????????? ????????????????## | | ?????????????????????????????? #????????????????## | | ?????????????????????????????????????????????????? | | ?????????????????????????????????????????????????? | | ?????????????????????????????????????????????????? | | ?????????????????????????????????????????????????? | | ?????????????????????????????????????????????????? | | ?????????????????????????????????????????????????? | | ?????????????????????????????????????????????????? | | ?????????????????????????????????????????????????? | | ?????????????????????????????????????????????????? | | ?????????????????????????????????????????????????? | | ?????????????????????????????????????????????????? | +----------------------------------------------------+ Best States ------------- Heat Dissipation 25 Energy Generation 14 Energy Capacity 160 Matter Stores 300 Matter Capacity 300 Sight Range 16 Terrain Scan Density 10 Resistance: KI 20 Resistance: TH 20 Resistance: EX 20 Resistance: EM 20 Resistance: I 20 Resistance: S 20 Resistance: P 20 Evasion (%) 55 Offensive Hacking 10 Item Schematics ----------------- None Robot Schematics ------------------ None Fabricated ------------ Nothing Alien Tech Used ----------------- None Achievements -------------- None Challenges ------------ None Game ------ Seed HellfireHybridCompactor Manual? 0 Play Time 00:19:05 Cumulative 949.6 hours Start 2022.08.13 @ 15:04:56 End 2022.08.13 @ 15:32:48 Sessions 1 Manual Loads 0 Difficulty Adventurer Special Mode None Game No. 208 Rogue 1 Adventurer 207 Explorer 0 Win Type - Total 4 Types 4/0/0/0/0/0/0/0/0 Lore% 69 Gallery% 83 Achievement% 64 Wizard Run 0 Options --------- ASCII 0 Keyboard 0 Movement Mouse Keybinds 0 Fullscreen 0 Font 16/SmallcapsGlow Map View 76x50 Tactical HUD 1 Map Filters NONE Filters BRIGHTNESS(125)|SATURATION(75)|LOW_CONTRAST(13,24,33)|SHIFT_HUE(130) Steam 1 RUN: 4a766334-113f-4784-a654-abc10c758562